fUSD/lending_fUSD_20251224
["ID","MTS","AMOUNT","RATE_DAILY","PERIOD"]
[399684837,1766620242098,-623.58710448,0.00017944,2]
[399684838,1766620242108,-250.0,0.00017944,2]
[399684839,1766620242118,-500.0,0.00017944,2]
[399684840,1766620242129,-250.0,0.00017944,2]
[399684841,1766620242139,-291.0,0.00017958,2]
[399684842,1766620242149,-291.0,0.00017971,2]
[399684843,1766620242159,-500.42799318,0.00017973,2]
[399684844,1766620242169,-500.0,0.00017973,2]
[399684845,1766620242179,-500.0,0.00017973,2]
[399684846,1766620242568,-500.0,0.00017973,2]
[399684847,1766620242584,-570.6142812,0.00017973,2]
[399684848,1766620242595,-162.47512997,0.00017973,2]
[399684849,1766620242605,-500.0,0.00017973,2]
[399684850,1766620242615,-500.3718357,0.00017973,2]
[399684851,1766620242625,-500.0,0.00017973,2]
[399684852,1766620242634,-500.0,0.00017973,2]
[399684853,1766620242644,-556.28902604,0.00017973,2]
[399684854,1766620242653,-500.0,0.00017973,2]
[399684855,1766620242663,-500.0,0.00017973,2]
[399684856,1766620242674,-500.0,0.00017973,2]
[399684857,1766620242684,-500.0,0.00017973,2]
[399684858,1766620242694,-519.15656558,0.00017973,2]
[399684859,1766620242704,-500.62013738,0.00017973,2]
[399684860,1766620242714,-334.79703865,0.00017973,2]
[399684861,1766620242724,-500.0,0.00017973,2]
[399684862,1766620242733,-500.36254835,0.00017973,2]
[399684863,1766620242743,-500.0,0.00017973,2]
[399684864,1766620242752,-500.0,0.00017973,2]
[399684865,1766620242762,-500.0,0.00017973,2]
[399684866,1766620242772,-150.25848283,0.00017973,2]
[399684867,1766620242781,-150.01500017,0.00017973,2]
[399684868,1766620242791,-500.38208314,0.00017973,2]
[399684869,1766620242802,-640.32887025,0.00017973,2]
[399684870,1766620242813,-160.28006419,0.00017973,2]
[399684871,1766620242823,-500.0,0.00017973,2]
[399684872,1766620242833,-160.27197192,0.00017973,2]
[399684873,1766620242843,-640.00175838,0.00017973,2]
[399684874,1766620242854,-500.0,0.00017973,2]
[399684875,1766620242864,-160.2351428,0.00017973,2]
[399684876,1766620242874,-500.0,0.00017973,2]
[399684877,1766620242884,-500.0,0.00017973,2]
[399684878,1766620242894,-500.41261549,0.00017973,2]
[399684879,1766620242904,-500.22140656,0.00017973,2]
[399684880,1766620242915,-500.67919196,0.00017973,2]
[399684881,1766620242924,-575.447525,0.00017973,2]
[399684882,1766620242934,-500.0,0.00017973,2]
[399684883,1766620242944,-160.27935937,0.00017973,2]
[399684884,1766620242953,-500.0,0.00017973,2]
[399684885,1766620242963,-500.0,0.00017973,2]
[399684886,1766620242972,-530.33299684,0.00017973,2]
[399684887,1766620242982,-500.0,0.00017973,2]
[399684888,1766620242991,-500.0,0.00017973,2]
[399684889,1766620243001,-500.0,0.00017973,2]
[399684890,1766620243011,-500.19289853,0.00017973,2]
[399684891,1766620243020,-500.0,0.00017973,2]
[399684892,1766620243030,-500.0,0.00017973,2]
[399684893,1766620243040,-164.90862468,0.00017973,2]
[399684894,1766620243050,-500.0,0.00017973,2]
[399684895,1766620243060,-566.59580681,0.00017973,2]
[399684896,1766620243070,-181.04592189,0.00017973,2]
[399684897,1766620243080,-500.0,0.00017973,2]
[399684898,1766620243091,-506.49407509,0.00017973,2]
[399684899,1766620243101,-500.0,0.00017973,2]
[399684900,1766620243111,-500.0,0.00017973,2]
[399684901,1766620243120,-500.4712,0.00017973,2]
[399684902,1766620243130,-500.82117656,0.00017973,2]
[399684903,1766620243140,-500.0,0.00017973,2]
[399684904,1766620243150,-500.37592798,0.00017973,2]
[399684905,1766620243160,-500.0,0.00017973,2]
[399684906,1766620243169,-500.0,0.00017973,2]
[399684907,1766620243179,-156.62518783,0.00017973,2]
[399684908,1766620243188,-500.0,0.00017973,2]
[399684909,1766620243198,-500.0,0.00017973,2]
[399684910,1766620243208,-500.0,0.00017973,2]
[399684911,1766620243217,-500.0,0.00017973,2]
[399684912,1766620243227,-500.0,0.00017973,2]
[399684913,1766620243237,-500.0,0.00017973,2]
[399684914,1766620243247,-500.0,0.00017973,2]
[399684915,1766620243257,-500.0,0.00017973,2]
[399684916,1766620243267,-509.43327994,0.00017973,2]
[399684917,1766620243277,-500.0,0.00017973,2]
[399684918,1766620243286,-500.0,0.00017973,2]
[399684919,1766620243296,-168.0,0.00017995,2]
[399684920,1766620243305,-300.0,0.00017999,2]
[399684921,1766620243315,-300.0,0.00017999,2]
[399684922,1766620243324,-300.0,0.00017999,2]
[399684923,1766620243334,-621929.44545304,0.00018,2]
[399684924,1766620243344,-55188.2813855,0.00018,2]
[399684925,1766620243354,-1186.06717948,0.00018,2]
[399684926,1766620243364,-151.0,0.00018,2]
[399684927,1766620243374,-151.0,0.00018,2]
[399684928,1766620243384,-243.679023,0.00018,2]
[399684929,1766620243394,-1000.0,0.00018082,2]
[399684930,1766620243404,-500.0,0.00018219,2]
[399684931,1766620243414,-291.0,0.00018222,2]
[399684932,1766620243423,-226.08054689,0.00018229,2]
[399684933,1766620243433,-168.0,0.00018259,2]
[399684934,1766620243443,-291.0,0.00018296,2]
[399684935,1766620243452,-3292.0,0.00018365,2]
[399684936,1766620243462,-291.0,0.0001843,2]
[399684937,1766620243471,-291.0,0.00018486,2]
[399684938,1766620243481,-517.71402823,0.00018492,2]
[399684939,1766620243491,-1000.0,0.00018521,2]
[399684940,1766620243500,-1000.0,0.00018521,2]
[399684942,1766620243510,-1000.0,0.00018521,2]
[399684944,1766620243519,-250.55305076,0.00018521,2]
[399684946,1766620243529,-1000.0,0.00018521,2]
[399684948,1766620243538,-1000.0,0.00018521,2]
[399684949,1766620243548,-357.01582357,0.00018521,2]
[399684950,1766620243557,-1000.0,0.00018521,2]
[399684951,1766620243567,-1000.0,0.00018521,2]
[399684952,1766620243577,-900.36560755,0.00018521,2]
[399684953,1766620243587,-1146.80307753,0.00018521,2]
[399684954,1766620243596,-502.64435602,0.00018521,2]
[399684955,1766620243605,-1000.0,0.00018521,2]
[399684956,1766620243615,-1005.88663379,0.00018521,2]
[399684957,1766620243624,-1000.0,0.00018521,2]
[399684958,1766620243635,-1000.0,0.00018521,2]
[399684959,1766620243644,-1000.0,0.00018521,2]
[399684960,1766620243653,-1000.0,0.00018521,2]
[399684961,1766620243663,-1000.0,0.00018521,2]
[399684962,1766620243673,-1000.0,0.00018521,2]
[399684963,1766620243683,-1000.0,0.00018521,2]
[399684965,1766620243694,-1000.0,0.00018521,2]
[399684966,1766620243706,-500.54278479,0.00018521,2]
[399684968,1766620243716,-1000.0,0.00018521,2]
[399684970,1766620243726,-736.0,0.00018553,2]
[399684971,1766620243736,-291.0,0.00018569,2]
[399684972,1766620243751,-168.0,0.00018657,2]
[399684973,1766620243761,-291.0,0.00018672,2]
[399684974,1766620243771,-291.0,0.00018675,2]
[399684975,1766620243781,-1000.0,0.0001876,2]
[399684976,1766620243791,-150.98,0.000188,2]
[399684977,1766620243801,-150.98,0.000188,2]
[399684978,1766620243811,-150.98,0.000188,2]
[399684979,1766620243821,-150.98,0.000188,2]
[399684980,1766620243830,-150.98,0.000188,2]
[399684981,1766620243840,-150.98,0.000188,2]
[399684982,1766620243850,-150.98,0.000188,2]
[399684983,1766620243860,-150.98,0.000188,2]
[399684984,1766620243870,-150.98,0.000188,2]
[399684985,1766620243880,-150.98,0.000188,2]
[399684986,1766620243890,-150.98,0.000188,2]
[399684987,1766620243900,-150.98,0.000188,2]
[399684988,1766620243909,-150.98,0.000188,2]
[399684989,1766620243919,-150.98,0.000188,2]
[399684990,1766620243929,-150.98,0.000188,2]
[399684991,1766620243939,-150.98,0.000188,2]
[399684992,1766620243948,-150.98,0.000188,2]
[399684993,1766620243958,-150.98,0.000188,2]
[399684994,1766620243968,-150.98,0.000188,2]
[399684995,1766620243978,-150.98,0.000188,2]
[399684996,1766620243989,-150.98,0.000188,2]
[399684997,1766620243998,-150.98,0.000188,2]
[399684998,1766620244008,-150.98,0.000188,2]
[399684999,1766620244018,-150.98,0.000188,2]
[399685000,1766620244028,-150.98,0.000188,2]
[399685001,1766620244037,-150.98,0.000188,2]
[399685002,1766620244047,-150.98,0.000188,2]
[399685003,1766620244057,-150.98,0.000188,2]
[399685004,1766620244068,-150.98,0.000188,2]
[399685005,1766620244079,-150.98,0.000188,2]
[399685006,1766620244089,-150.98,0.000188,2]
[399685007,1766620244099,-150.98,0.000188,2]
[399685008,1766620244110,-150.98,0.000188,2]
[399685009,1766620244119,-151.42395308,0.00018876,2]
[399685010,1766620244130,-160.77419796,0.000189,2]
[399685011,1766620244140,-150.0,0.00018973,2]
[399685012,1766620244149,-150.18672367,0.00018973,2]
[399685013,1766620244159,-300.0,0.00019,2]
[399685014,1766620244169,-646.13511338,0.00019,2]
[399685015,1766620244178,-2111.79667416,0.00019,2]
[399685016,1766620244187,-1500.0,0.00019068,2]
[399685017,1766620244197,-1500.0,0.00019068,2]
[399685018,1766620244206,-1500.0,0.00019068,2]
[399685019,1766620244216,-1500.0,0.00019068,2]
[399685020,1766620244225,-1500.0,0.00019068,2]
[399685021,1766620244235,-1500.0,0.00019068,2]
[399685022,1766620244244,-1500.0,0.00019068,2]
[399685023,1766620244254,-1500.0,0.00019068,2]
[399685024,1766620244264,-1500.0,0.00019068,2]
[399685025,1766620244273,-1500.0,0.00019068,2]
[399685026,1766620244283,-1500.0,0.00019068,2]
[399685027,1766620244293,-1500.0,0.00019068,2]
[399685028,1766620244303,-677.04950538,0.00019068,2]
[399685029,1766620244312,-1500.0,0.00019068,2]
[399685030,1766620244322,-1500.0,0.00019068,2]
[399685031,1766620244331,-1500.0,0.00019068,2]
[399685032,1766620244341,-1500.0,0.00019068,2]
[399685033,1766620244350,-200.0,0.00019082,2]
[399685034,1766620244360,-500.0,0.00019088,3]
[399685035,1766620244370,-384.79665381,0.00019129,2]
[399685036,1766620244379,-7911.8724195,0.00019133,2]
[399685037,1766620244388,-263.9,0.00019142,2]
[399685038,1766620244398,-151.0,0.00019178,2]
[399685039,1766620244407,-151.0,0.00019178,2]
[399685040,1766620244416,-151.0,0.00019178,2]
[399685041,1766620244425,-151.0,0.00019178,2]
[399685042,1766620244436,-151.0,0.00019178,2]
[399685043,1766620244445,-151.0,0.00019178,2]
[399685044,1766620244455,-151.0,0.00019178,2]
[399685045,1766620244465,-151.0,0.00019178,2]
[399685046,1766620244475,-151.0,0.00019178,2]
[399685047,1766620244484,-151.0,0.00019178,2]
[399685048,1766620244494,-151.0,0.00019178,2]
[399685049,1766620244503,-178.918368,0.00019178,2]
[399685050,1766620244512,-685.135947,0.00019178,2]
[399685051,1766620244522,-685.135947,0.00019178,2]
[399685052,1766620244532,-685.135947,0.00019178,2]
[399685053,1766620244541,-685.135947,0.00019178,2]
[399685054,1766620244550,-685.135947,0.00019178,2]
[399685055,1766620244559,-685.135947,0.00019178,2]
[399685056,1766620244569,-685.135947,0.00019178,2]
[399685057,1766620244578,-685.135947,0.00019178,2]
[399685058,1766620244588,-334.5472959,0.00019313,2]
[399685059,1766620244598,-165.42,0.00019404,2]
[399685060,1766620244608,-12584.9,0.00019427,2]
[399685061,1766620244618,-1000.0,0.00019438,2]
[399685062,1766620244627,-150.2114992,0.00019521,2]
[399685063,1766620244637,-1000.0,0.00019591,2]
[399685064,1766620244647,-1000.0,0.00019616,2]
[399685065,1766620244657,-1000.0,0.00019616,2]
[399685066,1766620244666,-1600.91603799,0.00019616,2]
[399685067,1766620244676,-2000.0,0.00019616,2]
[399685068,1766620244685,-2000.0,0.00019616,2]
[399685069,1766620244696,-306.90902189,0.00019616,2]
[399685070,1766620244707,-2000.0,0.00019616,2]
[399685071,1766620244716,-2000.0,0.00019616,2]
[399685072,1766620244726,-2000.0,0.00019616,2]
[399685073,1766620244736,-218.13226304,0.00019616,2]
[399685074,1766620244745,-2000.0,0.00019616,2]
[399685075,1766620244755,-2079.84715675,0.00019616,2]
[399685076,1766620244764,-2000.0,0.00019616,2]
[399685077,1766620244773,-1471.92079505,0.00019616,2]
[399685078,1766620244783,-2000.0,0.00019616,2]
[399685079,1766620244792,-2000.0,0.00019616,2]
[399685080,1766620244802,-3260.0,0.000198,2]
[399685081,1766620244811,-4905.54228056,0.000199,3]
[399685082,1766620244821,-10107.47963135,0.0001995,15]
[399685083,1766620244832,-1252.0,0.00019953,2]
[399685084,1766620244842,-10881.1622775,0.0002,2]
[399685085,1766620244852,-8274.66932352,0.0002,2]
[399685086,1766620244861,-7325.77362823,0.0002,2]
[399685087,1766620244871,-590.0,0.0002,2]
[399685088,1766620244881,-500.0,0.0002,2]
[399685089,1766620244890,-500.0,0.00020001,2]
[399685090,1766620244900,-500.0,0.00020002,2]
[399685091,1766620244910,-205.563578,0.00020003,2]
[399685092,1766620244920,-294.436322,0.00020012,2]
[399685093,1766620244930,-500.0,0.000201,2]
[399685094,1766620244940,-500.0,0.000201,2]
[399685095,1766620244949,-500.0,0.000201,2]
[399685096,1766620244958,-500.0,0.000201,2]
[399685097,1766620244968,-500.0,0.000201,2]
[399685098,1766620244978,-500.0,0.000201,2]
[399685099,1766620244987,-500.0,0.000201,2]
[399685100,1766620244997,-500.0,0.000201,2]
[399685101,1766620245006,-500.0,0.000201,2]
[399685102,1766620245016,-826.0,0.000201,2]
[399685103,1766620245025,-500.0,0.000201,2]
[399685104,1766620245035,-500.0,0.000201,2]
[399685105,1766620245044,-500.0,0.000201,2]
[399685106,1766620245053,-500.0,0.000201,2]
[399685107,1766620245063,-500.0,0.000201,2]
[399685108,1766620245074,-500.0,0.000201,2]
[399685109,1766620245083,-500.0,0.000201,2]
[399685110,1766620245093,-500.0,0.000201,2]
[399685111,1766620245103,-500.0,0.000201,2]
[399685112,1766620245113,-500.0,0.000201,2]
[399685113,1766620245123,-500.0,0.000201,2]
[399685114,1766620245133,-500.0,0.000201,2]
[399685115,1766620245143,-500.0,0.000201,2]
[399685116,1766620245152,-500.0,0.000201,2]
[399685117,1766620245162,-500.0,0.000201,2]
[399685118,1766620245172,-500.0,0.000201,2]
[399685119,1766620245181,-500.0,0.000201,2]
[399685120,1766620245191,-500.0,0.000201,2]
[399685121,1766620245201,-500.0,0.000201,2]
[399685122,1766620245211,-500.0,0.000201,2]
[399685123,1766620245221,-500.0,0.000201,2]
[399685124,1766620245231,-500.0,0.000201,2]
[399685125,1766620245242,-500.0,0.000201,2]
[399685126,1766620245252,-500.0,0.000201,2]
[399685127,1766620245263,-500.0,0.000201,2]
[399685128,1766620245274,-500.0,0.000201,2]
[399685129,1766620245284,-500.0,0.000201,2]
[399685130,1766620245294,-500.0,0.000201,2]
[399685131,1766620245304,-500.0,0.000201,2]
[399685132,1766620245314,-500.0,0.000201,2]
[399685133,1766620245323,-500.0,0.000201,2]
[399685134,1766620245333,-500.0,0.000201,2]
[399685135,1766620245344,-500.0,0.000201,2]
[399685136,1766620245354,-500.0,0.000201,2]
[399685137,1766620245365,-500.0,0.000201,2]
[399685138,1766620245375,-500.0,0.000201,2]
[399685139,1766620245384,-500.0,0.000201,2]
[399685140,1766620245394,-500.0,0.000201,2]
[399685141,1766620245403,-500.0,0.000201,2]
[399685142,1766620245413,-500.0,0.000201,2]
[399685143,1766620245422,-500.0,0.000201,2]
[399685144,1766620245432,-500.0,0.000201,2]
[399685145,1766620245442,-500.0,0.000201,2]
[399685146,1766620245451,-500.0,0.000201,2]
[399685147,1766620245461,-500.0,0.000201,2]
[399685148,1766620245471,-500.0,0.000201,2]
[399685149,1766620245480,-500.0,0.000201,2]
[399685150,1766620245490,-500.0,0.000201,2]
[399685151,1766620245500,-500.0,0.000201,2]
[399685152,1766620245510,-500.0,0.000201,2]
[399685153,1766620245519,-500.0,0.000201,2]
[399685154,1766620245528,-500.0,0.000201,2]
[399685155,1766620245538,-500.0,0.000201,2]
[399685156,1766620245548,-500.0,0.000201,2]
[399685157,1766620245558,-500.0,0.000201,2]
[399685158,1766620245568,-500.0,0.000201,2]
[399685159,1766620245577,-500.0,0.000201,2]
[399685160,1766620245587,-500.0,0.000201,2]
[399685161,1766620245597,-500.0,0.000201,2]
[399685162,1766620245607,-500.0,0.000201,2]
[399685163,1766620245616,-500.0,0.000201,2]
[399685164,1766620245626,-500.0,0.000201,2]
[399685165,1766620245636,-500.0,0.000201,2]
[399685166,1766620245646,-500.0,0.000201,2]
[399685167,1766620245656,-500.0,0.000201,2]
[399685168,1766620245665,-500.0,0.000201,2]
[399685169,1766620245676,-500.0,0.000201,2]
[399685170,1766620245686,-500.0,0.000201,2]
[399685171,1766620245697,-500.0,0.000201,2]
[399685172,1766620245708,-500.0,0.000201,2]
[399685173,1766620245718,-500.0,0.000201,2]
[399685174,1766620245728,-500.0,0.000201,2]
[399685175,1766620245739,-500.0,0.000201,2]
[399685176,1766620245750,-500.0,0.000201,2]
[399685177,1766620245760,-500.0,0.000201,2]
[399685178,1766620245770,-500.0,0.000201,2]
[399685179,1766620245781,-500.0,0.000201,2]
[399685180,1766620245790,-500.0,0.000201,2]
[399685181,1766620245800,-500.0,0.000201,2]
[399685182,1766620245810,-500.0,0.000201,2]
[399685183,1766620245819,-500.0,0.000201,2]
[399685184,1766620245829,-500.0,0.000201,2]
[399685185,1766620245839,-500.0,0.000201,2]
[399685186,1766620245849,-500.0,0.000201,2]
[399685187,1766620245859,-500.0,0.000201,2]
[399685188,1766620245868,-500.0,0.000201,2]
[399685189,1766620245878,-500.0,0.000201,2]
[399685190,1766620245887,-500.0,0.000201,2]
[399685191,1766620245897,-500.0,0.000201,2]
[399685192,1766620245907,-500.0,0.000201,2]
[399685193,1766620245916,-500.0,0.000201,2]
[399685194,1766620245925,-500.0,0.000201,2]
[399685195,1766620245935,-500.0,0.000201,2]
[399685196,1766620245945,-500.0,0.000201,2]
[399685197,1766620245955,-500.0,0.000201,2]
[399685198,1766620245965,-500.0,0.000201,2]
[399685199,1766620245975,-500.0,0.000201,2]
[399685200,1766620245985,-500.0,0.000201,2]
[399685201,1766620245995,-500.0,0.000201,2]
[399685202,1766620246005,-500.0,0.000201,2]
[399685203,1766620246015,-500.0,0.000201,2]
[399685204,1766620246025,-500.0,0.000201,2]
[399685205,1766620246035,-500.0,0.000201,2]
[399685206,1766620246046,-500.0,0.000201,2]
[399685207,1766620246056,-500.0,0.000201,2]
[399685208,1766620246066,-500.0,0.000201,2]
[399685209,1766620246076,-500.0,0.000201,2]
[399685210,1766620246085,-500.0,0.000201,2]
[399685211,1766620246095,-500.0,0.000201,2]
[399685212,1766620246105,-500.0,0.000201,2]
[399685213,1766620246115,-500.0,0.000201,2]
[399685214,1766620246125,-500.0,0.000201,2]
[399685215,1766620246135,-500.0,0.000201,2]
[399685216,1766620246144,-500.0,0.000201,2]
[399685217,1766620246154,-500.0,0.000201,2]
[399685218,1766620246164,-579.11026946,0.000201,2]
[399685219,1766620246174,-1000.0,0.00020116,2]
[399685220,1766620246185,-1254.3,0.00020145,2]
[399685221,1766620246195,-2500.0,0.00020164,2]
[399685222,1766620246207,-2500.0,0.00020164,2]
[399685223,1766620246218,-1003.6854697,0.00020164,2]
[399685224,1766620246228,-2446.68353605,0.00020164,2]
[399685225,1766620246239,-1468.84874159,0.00020164,2]
[399685226,1766620246251,-2500.0,0.00020164,2]
[399685227,1766620246260,-1496.61681738,0.00020164,2]
[399685228,1766620246271,-2381.04120458,0.00020164,2]
[399685229,1766620246282,-2500.0,0.00020164,2]
[399685230,1766620246293,-1000.0,0.00020187,2]
[399685231,1766620246302,-4129.0,0.00020202,2]
[399685232,1766620246312,-1609.0,0.00020221,2]
[399685233,1766620246322,-612.0,0.00020221,2]
[399685234,1766620246333,-3458.0,0.00020221,2]
[399685235,1766620246343,-1326.0,0.00020221,2]
[399685236,1766620246354,-1263.0,0.00020221,2]
[399685237,1766620246363,-432.0,0.00020221,2]
[399685238,1766620246373,-1198.0,0.00020221,2]
[399685239,1766620246383,-912.0,0.00020221,2]
[399685240,1766620246393,-150.0,0.00020221,2]
[399685242,1766620246403,-4807.0,0.00020221,2]
[399685244,1766620246413,-2430.0,0.00020221,2]
[399685246,1766620246423,-151.42395308,0.00020328,2]
[399685247,1766620246432,-8881.51,0.00020345,2]
[399685249,1766620246443,-260.82,0.00020409,2]
[399685251,1766620246454,-300.0,0.00020502,2]
[399685252,1766620246463,-300.0,0.00020502,2]
[399685253,1766620246474,-2913.9769276,0.00020503,2]
[399685254,1766620246484,-58528.791173,0.00020503,2]
[399685255,1766620246494,-384.79665381,0.00020556,2]
[399685256,1766620246504,-346.92554585,0.00020682,2]
[399685257,1766620246513,-599.60298507,0.00020683,2]
[399685258,1766620246523,-1000.0,0.00020795,2]
[399685259,1766620246533,-12584.9,0.00020921,2]
[399685260,1766620246543,-350.0,0.00021,2]
[399685261,1766620246552,-849.0,0.00021,2]
[399685262,1766620246562,-299.0,0.00021,2]
[399685263,1766620246572,-263.9,0.00021128,2]
[399685264,1766620246582,-200.0,0.0002113,2]
[399685265,1766620246591,-200.0,0.00021179,2]
[399685266,1766620246601,-983.0,0.000213,2]
[399685267,1766620246610,-930.0,0.000213,2]
[399685268,1766620246863,-650.1961385,0.00021309,2]
[399685269,1766620246874,-13059.5385477,0.00021309,2]
[399685270,1766620246891,-1000.0,0.00021372,2]
[399685271,1766620246901,-7911.8724195,0.00021379,2]
[399685272,1766620246911,-165.42,0.00021456,2]
[399685273,1766620246922,-1291.0,0.00021471,2]
[399685274,1766620246932,-2000.0,0.000215,2]
[399685275,1766620246943,-226.08054689,0.00021607,2]
[399685276,1766620246953,-151.42395308,0.0002178,2]
[399685277,1766620246963,-1922.47,0.00021787,2]
[399685278,1766620246974,-1737.86,0.00021787,2]
[399685279,1766620246985,-1220.11,0.00021787,2]
[399685280,1766620246995,-2440.22,0.00021787,2]
[399685281,1766620247005,-501.02,0.000219,7]
[399685282,1766620247015,-2086.57419273,0.00021917,2]
[399685283,1766620247025,-500.0,0.00021917,2]
[399685284,1766620247034,-500.0,0.00021917,2]
[399685285,1766620247044,-500.0,0.00021917,2]
[399685286,1766620247053,-578.59832559,0.00021917,2]
[399685287,1766620247063,-5000.0,0.00021918,2]
[399685288,1766620247073,-151.0,0.00021918,2]
[399685289,1766620247083,-151.0,0.00021918,2]
[399685290,1766620247093,-151.0,0.00021918,2]
[399685291,1766620247103,-151.0,0.00021918,2]
[399685292,1766620247113,-151.0,0.00021918,2]
[399685293,1766620247124,-199.42004632,0.00021918,2]
[399685294,1766620247134,-357.77436558,0.00021934,8]
[399685295,1766620247143,-384.79665381,0.00021982,2]
[399685296,1766620247154,-300.0,0.00021999,2]
[399685297,1766620247164,-300.0,0.00021999,2]
[399685298,1766620247173,-157.53838756,0.00021999,2]
[399685299,1766620247183,-289.6,0.00022,7]
[399685300,1766620247193,-178913.68,0.00022,7]
[399685301,1766620247204,-151.0,0.00022,2]
[399685302,1766620247215,-400.0,0.00022,2]
[399685303,1766620247225,-151.0,0.00022,2]
[399685304,1766620247235,-151.0,0.00022,2]
[399685305,1766620247245,-151.0,0.00022,2]
[399685306,1766620247255,-151.0,0.00022,2]
[399685307,1766620247266,-151.0,0.00022,2]
[399685308,1766620247275,-151.0,0.00022,2]
[399685309,1766620247285,-151.0,0.00022,2]
[399685310,1766620247294,-151.0,0.00022,2]
[399685311,1766620247304,-685.135947,0.00022,2]
[399685312,1766620247314,-685.135947,0.00022,2]
[399685313,1766620247324,-685.135947,0.00022,2]
[399685314,1766620247333,-685.135947,0.00022,2]
[399685315,1766620247344,-151.1,0.00022,2]
[399685316,1766620247355,-359.76179104,0.00022051,2]
[399685317,1766620247368,-400.0,0.00022192,7]
[399685318,1766620247378,-500.0,0.00022415,2]
[399685319,1766620247387,-500.0,0.00022415,2]
[399685320,1766620247396,-500.0,0.00022415,2]
[399685321,1766620247406,-500.0,0.00022415,2]
[399685322,1766620247415,-500.0,0.00022415,2]
[399685323,1766620247424,-500.0,0.00022415,2]
[399685324,1766620247434,-500.0,0.00022415,2]
[399685325,1766620247444,-500.0,0.00022415,2]
[399685326,1766620247454,-500.0,0.00022415,2]
[399685327,1766620247464,-500.0,0.00022415,2]
[399685328,1766620247473,-500.0,0.00022415,2]
[399685329,1766620247483,-500.0,0.00022415,2]
[399685330,1766620247492,-500.0,0.00022415,2]
[399685331,1766620247501,-500.0,0.00022415,2]
[399685332,1766620247511,-500.0,0.00022415,2]
[399685333,1766620247521,-500.0,0.00022415,2]
[399685334,1766620247530,-500.0,0.00022415,2]
[399685335,1766620247539,-500.0,0.00022415,2]
[399685336,1766620247549,-500.0,0.00022415,2]
[399685337,1766620247559,-500.0,0.00022415,2]
[399685338,1766620247569,-500.0,0.00022415,2]
[399685339,1766620247579,-500.0,0.00022415,2]
[399685340,1766620247589,-500.0,0.00022415,2]
[399685341,1766620247598,-500.0,0.00022415,2]
[399685342,1766620247608,-500.0,0.00022415,2]
[399685343,1766620247618,-610.0,0.00022415,2]
[399685344,1766620247627,-12584.9,0.00022415,2]
[399685345,1766620247637,-500.0,0.00022415,2]
[399685346,1766620247647,-500.0,0.00022415,2]
[399685347,1766620247657,-500.0,0.00022415,2]
[399685348,1766620247667,-500.0,0.00022415,2]